bitfinex-derivatives/quotes_SOLF0:USTF0_20250425
["timestamp","ask_amount","ask_price","bid_price","bid_amount"]
[1745562895283,6.5322,153.04,153.0,5.17710035]
[1745562898487,6.5326,153.03,153.0,5.17710035]
[1745562900488,6.533,153.02,153.0,5.17710035]
[1745562900693,5.17710035,153.01,152.96,23.4]
[1745562900893,5.17710035,153.01,152.96,28.57710035]
[1745562901096,6.5343,152.99,152.96,28.57710035]
[1745562901298,5.17710035,153.01,152.96,5.17710035]
[1745562901894,6.5345,152.99,152.96,5.17710035]
[1745562903190,6.5345,152.99,152.95,6.5359]
[1745562903396,6.5345,152.99,152.95,11.71300035]
[1745562903996,29.8139,153.0,152.97,5.17710035]
[1745562904295,28.45710035,153.0,152.94,5.17710035]
[1745562904494,5.17710035,152.98,152.94,5.17710035]
[1745562904804,5.17710035,152.98,152.93,23.28]
[1745562904805,5.17710035,152.98,152.92,5.17710035]
[1745562904990,5.17710035,152.96,152.88,47.93676557]
[1745562905185,6.5371,152.93,152.89,12.75683026]
[1745562905990,6.5371,152.93,152.89,19.29523026]
[1745562906195,6.5371,152.93,152.89,11.71550035]
[1745562906495,6.5371,152.93,152.89,5.17710035]
[1745562909196,6.5371,152.93,152.88,53.51749548]
[1745562909397,11.71450035,152.92,152.88,28.45710035]
[1745562909598,11.71450035,152.92,152.88,5.17710035]
[1745562910394,28.47710035,152.92,152.87,5.17710035]
[1745562910997,6.5379,152.91,152.87,5.17710035]
[1745562911498,6.5389,152.89,152.85,5.17710035]
[1745562911700,5.17710035,152.9,152.84,11.71770035]
[1745562912498,6.5386,152.89,152.84,11.71770035]
[1745562913299,6.539,152.88,152.84,5.17710035]
[1745562913899,6.539,152.88,152.84,11.71770035]
[1745562914399,6.5386,152.89,152.84,11.71770035]
[1745562914799,5.17710035,152.9,152.84,11.71770035]
[1745562915599,6.5393,152.88,152.84,5.17710035]
[1745562916199,5.17710035,152.88,152.84,5.17710035]
[1745562916500,5.17710035,152.89,152.84,5.17710035]
[1745562917203,6.5392,152.88,152.84,5.17710035]
[1745562918303,6.5394,152.87,152.84,5.17710035]
[1745562918803,5.17710035,152.87,152.83,5.17710035]
[1745562919102,6.5398,152.86,152.83,5.17710035]
[1745562921502,6.5404,152.85,152.83,5.17710035]
[1745562921702,5.17710035,152.87,152.81,7.18730035]
[1745562921901,5.17710035,152.87,152.81,5.17710035]
[1745562922102,5.17710035,152.87,152.8,10.4923]
[1745562922103,5.17710035,152.85,152.8,15.66940035]
[1745562922703,5.17710035,152.85,152.82,5.17710035]
[1745562923302,5.17710035,152.87,152.82,5.17710035]
[1745562923502,5.17710035,152.87,152.82,6.5414]
[1745562923702,5.17710035,152.87,152.83,5.17710035]
[1745562923903,5.17710035,152.87,152.81,5.17710035]
[1745562924303,6.5403,152.85,152.81,5.17710035]
[1745562924604,5.17710035,152.87,152.81,5.17710035]
[1745562925007,6.5399,152.86,152.81,5.17710035]
[1745562925304,6.5399,152.86,152.81,11.71880035]
[1745562929007,6.5399,152.86,152.82,6.5414]
[1745562929204,5.17710035,152.87,152.82,6.5414]
[1745562929909,6.5401,152.86,152.81,11.71890035]
[1745562931409,6.5401,152.86,152.82,6.5415]
[1745562932908,6.5401,152.86,152.81,11.71890035]
[1745562933913,23.3,152.88,152.85,5.17710035]
[1745562935115,29.8392,152.88,152.85,5.17710035]
[1745562937414,5.17710035,152.87,152.81,1.9795]
[1745562937615,5.17710035,152.87,152.82,5.17710035]
[1745562938315,6.5398,152.86,152.82,5.17710035]
[1745562939117,6.5403,152.85,152.82,5.17710035]
[1745562939614,6.54,152.86,152.82,5.17710035]
[1745562940415,6.5402,152.85,152.82,5.17710035]
[1745562941617,6.5399,152.86,152.82,11.71860035]
[1745562941810,5.17710035,152.87,152.82,5.17710035]
[1745562942210,6.5405,152.85,152.82,5.17710035]
[1745562942818,6.5399,152.86,152.82,11.71860035]
[1745562948719,6.5399,152.86,152.83,6.541]
[1745562949718,5.17710035,152.87,152.84,6.5406]
[1745562950420,23.3,152.91,152.86,5.17710035]
[1745562951322,6.5385,152.89,152.86,11.71680035]
[1745562951823,6.5385,152.89,152.86,5.17710035]
[1745562952528,5.17710035,152.9,152.84,5.17710035]
[1745562952828,5.17710035,152.86,152.81,7.15660035]
[1745562953032,5.17710035,152.86,152.8,7.07980035]
[1745562954130,6.541,152.84,152.8,7.07980035]
[1745562955031,5.17710035,152.86,152.82,5.17710035]
[1745562955730,11.71720035,152.86,152.82,5.17710035]
[1745562956231,6.5403,152.85,152.82,5.17710035]
[1745562957534,6.5403,152.85,152.8,1.9027]
[1745562957535,6.5403,152.85,152.8,8.4449]
[1745562957734,11.71700035,152.86,152.81,5.17710035]
[1745562957927,6.5399,152.86,152.81,5.17710035]
[1745562958334,6.5399,152.86,152.83,5.17710035]
[1745562959129,23.3,152.87,152.83,5.17710035]
[1745562959434,6.5395,152.87,152.85,5.17710035]
[1745562959641,28.47710035,152.9,152.85,5.17710035]
[1745562960233,6.539,152.88,152.85,5.17710035]
[1745562960535,28.47710035,152.9,152.85,5.17710035]
[1745562960833,6.5386,152.89,152.85,5.17710035]
[1745562961038,28.47710035,152.9,152.85,5.17710035]
[1745562961532,6.5393,152.88,152.85,5.17710035]
[1745562963535,6.5386,152.89,152.85,5.17710035]
[1745562964031,28.47710035,152.9,152.85,5.17710035]
[1745562964228,23.3,152.9,152.87,5.17710035]
[1745562965937,29.8382,152.9,152.87,5.17710035]
[1745562967235,23.3,152.9,152.87,5.17710035]
[1745562967541,6.5377,152.91,152.87,5.17710035]
[1745562968040,6.5375,152.92,152.89,5.17710035]
[1745562968241,23.44,152.95,152.91,5.17710035]
[1745562968541,6.5367,152.94,152.91,5.17710035]
[1745562969135,29.976,152.95,152.91,5.17710035]
[1745562969534,23.44,152.95,152.91,5.17710035]
[1745562970034,29.9761,152.95,152.91,5.17710035]
[1745562971444,6.5364,152.94,152.91,5.17710035]
[1745562973347,28.61710035,152.98,152.93,5.17710035]
[1745562973548,5.17710035,152.94,152.89,5.17710035]
[1745562973750,6.5371,152.93,152.89,5.17710035]
[1745562975451,6.5372,152.92,152.89,5.17710035]
[1745562975852,5.17710035,152.94,152.88,5.17710035]
[1745562976055,6.5379,152.91,152.88,5.17710035]
[1745562976352,5.17710035,152.94,152.88,5.17710035]
[1745562976652,28.61710035,152.94,152.88,5.17710035]
[1745562976852,6.5375,152.92,152.88,5.17710035]
[1745562977154,28.61710035,152.94,152.9,5.17710035]
[1745562977853,35.15360035,152.94,152.9,5.17710035]
[1745562978048,23.44,152.94,152.9,5.17710035]
[1745562978254,6.5363,152.95,152.9,11.71510035]
[1745562978747,6.5363,152.95,152.91,6.5374]
[1745562978946,6.5363,152.95,152.92,5.17710035]
[1745562980755,11.71280035,152.96,152.92,5.17710035]
[1745562980948,23.44,152.97,152.92,5.17710035]
[1745562981351,23.44,152.97,152.94,5.17710035]
[1745562982058,11.71210035,152.98,152.94,5.17710035]
[1745562983060,5.17710035,152.98,152.94,5.17710035]
[1745562983261,5.17710035,152.96,152.91,23.44]
[1745562983464,5.17710035,152.94,152.9,5.17710035]
[1745562983761,5.17710035,152.94,152.89,5.17710035]
[1745562983762,6.5377,152.91,152.89,5.17710035]
[1745562984057,5.17710035,152.94,152.89,5.17710035]
[1745562985262,6.5374,152.92,152.89,5.17710035]
[1745562986364,6.5368,152.93,152.89,11.71550035]
[1745562986562,5.17710035,152.94,152.89,5.17710035]
[1745562986756,28.61710035,152.96,152.91,5.17710035]
[1745562986959,6.5363,152.95,152.91,5.17710035]
[1745562988462,28.61710035,152.96,152.9,5.17710035]
[1745562989062,6.537,152.93,152.9,5.17710035]
[1745562991764,28.61710035,152.96,152.9,11.71510035]
[1745562992264,6.5362,152.95,152.9,11.71510035]
[1745562992464,28.61710035,152.96,152.9,11.71510035]
[1745562992762,6.5367,152.94,152.9,11.71510035]
[1745562994965,6.5369,152.93,152.9,5.17710035]
[1745562995264,25.2492,152.99,152.92,5.17710035]
[1745562995565,6.5354,152.97,152.92,11.71400035]
[1745562996261,6.5355,152.96,152.9,1.9398]
[1745562996467,6.5355,152.96,152.92,5.17710035]
[1745562996969,6.5352,152.97,152.92,11.71400035]
[1745562997170,6.5352,152.97,152.92,5.17710035]
[1745562997362,5.17710035,152.98,152.94,5.17710035]
[1745562997569,11.71210035,152.98,152.94,5.17710035]
[1745562998070,6.5352,152.97,152.94,5.17710035]
[1745562999270,23.36,152.99,152.94,5.17710035]
[1745562999965,5.17710035,152.98,152.91,5.17710035]
[1745563000265,28.53710035,152.99,152.93,5.17710035]
[1745563000470,29.8944,152.99,152.95,5.17710035]
[1745563001064,29.8944,152.99,152.95,11.71290035]
[1745563001269,29.8944,152.99,152.95,5.17710035]
[1745563002272,5.17710035,153.01,152.95,5.17710035]
[1745563002676,5.17710035,152.99,152.95,5.17710035]
[1745563002875,5.17710035,152.99,152.94,11.71330035]
[1745563003868,6.5355,152.96,152.93,5.17710035]
[1745563004174,6.5355,152.96,152.92,5.17710035]
[1745563004370,6.536,152.95,152.92,5.17710035]
[1745563004571,23.36,152.98,152.92,5.17710035]
[1745563004766,28.53710035,152.98,152.92,5.17710035]
[1745563006174,6.5358,152.96,152.92,5.17710035]
[1745563006870,6.5359,152.95,152.92,5.17710035]
[1745563007169,5.17710035,152.94,152.88,5.17710035]
[1745563007572,28.53710035,152.94,152.88,5.17710035]
[1745563007772,5.17710035,152.92,152.88,5.17710035]
[1745563007973,5.17710035,152.92,152.87,23.36]
[1745563008272,5.17710035,152.92,152.88,11.71600035]
[1745563009073,6.5369,152.93,152.88,11.71600035]
[1745563009273,28.53710035,152.94,152.89,6.5384]
[1745563009572,23.36,152.94,152.9,5.17710035]
[1745563009774,23.36,152.97,152.92,5.17710035]
[1745563009970,5.17710035,152.95,152.91,5.17710035]
[1745563010972,11.71310035,152.95,152.91,5.17710035]
[1745563013078,6.5357,152.96,152.91,11.71470035]
[1745563013278,11.71280035,152.96,152.91,11.71470035]
[1745563013476,5.17710035,152.96,152.91,11.71470035]
[1745563013776,6.5359,152.95,152.91,5.17710035]
[1745563018084,6.5359,152.95,152.91,11.71470035]
[1745563019681,5.17710035,152.94,152.91,5.17710035]
[1745563019885,5.17710035,152.94,152.89,5.17710035]
[1745563020685,5.17710035,152.94,152.89,11.71530035]
[1745563020885,5.17710035,152.94,152.89,5.17710035]
[1745563021187,6.5364,152.95,152.9,6.538]
[1745563021387,5.17710035,152.95,152.9,6.538]
[1745563022088,6.5367,152.94,152.89,11.71550035]
[1745563022387,5.17710035,152.95,152.89,11.71550035]
[1745563022586,6.5369,152.93,152.89,6.5384]
[1745563022787,6.5369,152.93,152.9,5.17710035]
[1745563023186,6.5364,152.94,152.9,11.71510035]
[1745563023386,23.36,152.97,152.92,5.17710035]
[1745563023387,5.17710035,152.96,152.92,5.17710035]
[1745563024191,6.536,152.95,152.92,5.17710035]
[1745563024491,28.53710035,152.97,152.92,5.17710035]
[1745563024692,6.5358,152.96,152.92,5.17710035]
[1745563025189,28.53710035,152.97,152.92,5.17710035]
[1745563025892,35.07250035,152.97,152.93,6.5368]
[1745563026595,35.07250035,152.97,152.92,11.71420035]
[1745563026896,28.53710035,152.97,152.92,5.17710035]
[1745563027395,6.5363,152.95,152.92,5.17710035]
[1745563027799,6.5366,152.94,152.92,5.17710035]
[1745563027999,5.17710035,152.95,152.92,5.17710035]
[1745563028296,11.71330035,152.95,152.92,5.17710035]
[1745563029196,6.5362,152.95,152.92,5.17710035]
[1745563029900,6.5362,152.95,152.91,5.17710035]
[1745563030293,11.71280035,152.96,152.91,5.17710035]
[1745563030492,5.17710035,152.96,152.91,5.17710035]
[1745563030692,23.36,152.97,152.91,5.17710035]
[1745563030994,5.17710035,152.95,152.91,5.17710035]
[1745563031296,23.36,152.97,152.91,5.17710035]
[1745563031495,5.17710035,152.96,152.91,5.17710035]
[1745563031793,6.536,152.95,152.91,11.71460035]
[1745563032195,5.17710035,152.92,152.86,5.17710035]
[1745563032395,5.17710035,152.92,152.86,11.71660035]
[1745563032698,5.17710035,152.92,152.86,5.17710035]
[1745563032888,30.197,152.93,152.88,11.71570035]
[1745563033092,30.197,152.93,152.9,5.17710035]
[1745563033293,23.66,152.96,152.9,5.17710035]
[1745563033493,6.5363,152.95,152.9,5.17710035]
[1745563033996,6.5363,152.95,152.91,6.5376]
[1745563034198,6.5363,152.95,152.92,5.17710035]
[1745563034794,6.5355,152.96,152.92,11.71420035]
[1745563035399,6.5355,152.96,152.94,5.17710035]
[1745563036398,23.66,152.99,152.94,5.17710035]
[1745563036699,23.66,152.99,152.96,5.17710035]
[1745563037300,6.5347,152.98,152.96,5.17710035]
[1745563037501,23.66,152.99,152.96,5.17710035]
[1745563040102,5.17710035,153.01,152.95,5.17710035]
[1745563040302,6.5343,152.99,152.95,5.17710035]
[1745563041004,6.5343,152.99,152.95,11.71300035]
[1745563041206,11.71140035,152.99,152.94,5.17710035]
[1745563041704,6.5347,152.98,152.94,11.71340035]
[1745563042204,11.71140035,152.99,152.94,11.71340035]
[1745563042602,11.71140035,152.99,152.95,6.5358]
[1745563043103,11.71140035,152.99,152.94,11.71330035]
[1745563043905,6.5347,152.98,152.94,11.71330035]
[1745563044807,6.5353,152.97,152.94,5.17710035]
[1745563045000,5.17710035,152.97,152.92,5.17710035]
[1745563045304,5.17710035,152.97,152.91,5.17710035]
[1745563045505,5.17710035,152.95,152.91,5.17710035]
[1745563045902,6.5367,152.94,152.91,5.17710035]
[1745563046099,5.17710035,152.95,152.9,1.9241]
[1745563046302,5.17710035,152.95,152.89,5.17710035]
[1745563046303,23.64,152.94,152.89,5.17710035]
[1745563047201,23.64,152.94,152.89,11.71530035]
[1745563047402,23.64,152.94,152.89,5.17710035]
[1745563047803,23.64,152.94,152.91,5.17710035]
[1745563048406,23.64,152.94,152.91,11.71450035]
[1745563050410,30.1764,152.94,152.91,5.17710035]
[1745563050610,23.64,152.94,152.91,5.17710035]
[1745563051509,30.1765,152.94,152.91,11.71470035]
[1745563052509,30.1765,152.94,152.91,5.17710035]
[1745563052710,6.5368,152.93,152.91,5.17710035]
[1745563053309,30.1765,152.94,152.91,5.17710035]
[1745563053607,23.64,152.94,152.91,5.17710035]
[1745563054109,6.5371,152.93,152.89,11.71550035]
[1745563054306,28.81710035,152.94,152.86,3.8806]
[1745563054513,5.17710035,152.9,152.86,5.17710035]
[1745563054805,5.17710035,152.9,152.84,0.27645]
[1745563055110,6.5388,152.89,152.84,11.99395035]
[1745563055312,29.59710035,152.9,152.84,6.81685]
[1745563055513,29.59710035,152.9,152.85,5.17710035]
[1745563055712,6.5388,152.89,152.85,11.71730035]
[1745563057213,36.13520035,152.9,152.85,11.71730035]
[1745563057610,36.13520035,152.9,152.86,6.5397]
[1745563058214,36.13520035,152.9,152.85,11.71720035]
[1745563058414,36.13520035,152.9,152.85,5.17710035]
[1745563059317,36.13520035,152.9,152.86,6.5397]
[1745563060718,29.59710035,152.9,152.87,6.5392]
[1745563060911,24.42,152.9,152.87,11.71630035]
[1745563061418,24.42,152.9,152.88,6.5389]
[1745563062117,24.42,152.9,152.87,11.71630035]
[1745563063912,24.42,152.9,152.84,24.42]
[1745563064219,29.59710035,152.9,152.86,5.17710035]
[1745563065319,29.59710035,152.9,152.84,5.17710035]
[1745563066322,6.5391,152.88,152.84,11.71760035]
[1745563071319,29.59710035,152.9,152.84,5.17710035]
[1745563071618,5.17710035,152.88,152.83,5.17710035]
[1745563071816,6.5411,152.83,152.8,6.5421]
[1745563072126,24.44,152.86,152.82,5.17710035]
[1745563072516,6.5405,152.85,152.83,5.17710035]
[1745563072713,24.44,152.86,152.84,5.17710035]
[1745563075017,24.44,152.86,152.84,11.71750035]
[1745563075223,6.5391,152.88,152.84,11.71750035]
[1745563075420,6.5391,152.88,152.86,5.17710035]
[1745563075627,6.5394,152.87,152.84,5.17710035]
[1745563076924,6.5391,152.88,152.84,5.17710035]
[1745563077323,24.44,152.89,152.84,5.17710035]
[1745563078023,6.5396,152.87,152.84,5.17710035]
[1745563080826,6.5391,152.88,152.84,11.71770035]
[1745563081125,6.5391,152.88,152.86,5.17710035]
[1745563081325,24.44,152.89,152.86,5.17710035]
[1745563082027,6.5397,152.87,152.84,5.17710035]
[1745563082224,24.44,152.89,152.84,5.17710035]
[1745563082529,6.5401,152.86,152.84,5.17710035]
[1745563082723,5.17710035,152.88,152.84,5.17710035]
[1745563083028,5.17710035,152.88,152.82,5.17710035]
[1745563083224,6.5409,152.84,152.82,5.17710035]
[1745563083425,7.12870035,152.88,152.82,5.17710035]
[1745563084023,6.5401,152.86,152.82,5.17710035]
[1745563085022,6.5394,152.87,152.84,5.17710035]
[1745563085827,6.5399,152.86,152.84,5.17710035]
[1745563090823,24.44,152.89,152.84,5.17710035]
[1745563091132,6.5395,152.87,152.84,5.17710035]
[1745563104242,6.5399,152.86,152.84,5.17710035]
[1745563104537,5.17710035,152.88,152.82,5.17710035]
[1745563104840,6.5406,152.85,152.82,5.17710035]
[1745563105138,24.28,152.86,152.82,5.17710035]
[1745563105435,6.5403,152.85,152.82,5.17710035]
[1745563105640,24.28,152.86,152.82,5.17710035]
[1745563106140,6.5405,152.85,152.82,5.17710035]
[1745563108645,6.5407,152.84,152.82,5.17710035]
[1745563109142,6.5415,152.82,152.81,5.17710035]
[1745563109346,6.5415,152.82,152.79,5.17710035]
[1745563110146,6.5419,152.81,152.79,5.17710035]
[1745563111158,5.17710035,152.84,152.77,0.34318]
[1745563111159,6.5432,152.79,152.77,0.34318]
[1745563111448,6.5432,152.79,152.77,5.52028035]
[1745563112953,24.28,152.82,152.78,5.17710035]
[1745563113249,24.28,152.82,152.8,5.17710035]
[1745563113451,6.5384,152.9,152.81,25.44]
[1745563113654,25.44,152.92,152.89,5.17710035]
[1745563114054,25.44,152.92,152.91,5.17710035]
[1745563115249,25.44,152.92,152.84,6.5406]
[1745563115556,25.44,152.92,152.88,5.17710035]
[1745563116257,25.44,152.92,152.9,5.17710035]
[1745563116760,31.9773,152.92,152.9,5.17710035]
[1745563117259,25.44,152.92,152.9,5.17710035]
[1745563118156,6.5365,152.94,152.9,5.17710035]
[1745563118360,6.5365,152.94,152.93,5.17710035]
[1745563120861,6.5369,152.93,152.88,10.481]
[1745563121161,6.5369,152.93,152.92,5.17710035]
[1745563121361,31.9761,152.95,152.92,5.17710035]
[1745563121561,31.9761,152.95,152.94,5.17710035]
[1745563121962,6.5372,152.93,152.92,5.17710035]
[1745563124365,5.17710035,152.93,152.88,9.11930035]
[1745563124563,5.17710035,152.93,152.88,5.17710035]
[1745563125164,6.538,152.91,152.88,5.17710035]
[1745563125666,5.17710035,152.93,152.88,5.17710035]
[1745563126669,6.5379,152.91,152.88,5.17710035]
[1745563126969,5.17710035,152.91,152.83,25.42]
[1745563127166,6.539,152.88,152.85,5.17710035]
[1745563128168,6.5386,152.89,152.85,5.17710035]
[1745563128669,25.42,152.9,152.85,5.17710035]
[1745563129272,25.42,152.9,152.85,11.71720035]
[1745563129571,31.9582,152.9,152.87,5.17710035]
[1745563129771,25.42,152.9,152.87,5.17710035]
[1745563130976,25.42,152.9,152.87,11.71640035]
[1745563131574,25.42,152.9,152.87,5.17710035]
[1745563132569,31.9581,152.9,152.87,5.17710035]
[1745563135380,6.5385,152.89,152.85,6.5401]
[1745563135580,6.5385,152.89,152.86,5.17710035]
[1745563139183,25.42,152.9,152.88,5.17710035]
[1745563139383,30.59710035,152.93,152.88,5.17710035]
[1745563139684,6.5377,152.91,152.88,5.17710035]
[1745563141681,30.59710035,152.93,152.88,5.17710035]
[1745563141881,5.17710035,152.91,152.81,31.1149]
[1745563142081,5.17710035,152.91,152.85,5.17710035]
[1745563142383,6.5388,152.89,152.85,11.71730035]
[1745563142683,5.17710035,152.91,152.85,11.71730035]
[1745563142684,5.17710035,152.91,152.85,5.17710035]
[1745563143083,6.5392,152.88,152.85,5.17710035]
[1745563143682,5.17710035,152.91,152.85,5.17710035]
[1745563144380,5.17710035,152.89,152.85,5.17710035]
[1745563144579,30.17710035,152.89,152.85,5.17710035]
[1745563144775,30.17710035,152.89,152.84,5.17710035]
[1745563144980,5.17710035,152.87,152.81,10.87200035]
[1745563145278,5.17710035,152.87,152.81,9.02710035]
[1745563145474,6.5405,152.85,152.81,9.02710035]
[1745563145782,5.17710035,152.87,152.81,7.13770035]
[1745563145982,5.17710035,152.87,152.81,13.67950035]
[1745563146183,5.17710035,152.87,152.81,7.13770035]
[1745563146582,6.5401,152.86,152.81,7.13770035]
[1745563146782,25.0,152.85,152.81,7.13770035]
[1745563147178,25.0,152.85,152.81,13.67940035]
[1745563147375,25.0,152.85,152.83,5.17710035]
[1745563147579,25.0,152.88,152.83,5.17710035]
[1745563147881,31.5389,152.88,152.85,5.17710035]
[1745563150285,25.0,152.88,152.85,5.17710035]
[1745563150686,25.0,152.88,152.85,11.71720035]
[1745563150985,25.0,152.88,152.85,5.17710035]
[1745563151375,31.539,152.88,152.85,5.17710035]
[1745563151586,25.0,152.88,152.85,5.17710035]
[1745563153086,6.5394,152.87,152.85,5.17710035]
[1745563153489,6.5394,152.87,152.83,5.17710035]
[1745563154090,6.5394,152.87,152.83,11.71810035]
[1745563155289,6.5398,152.86,152.83,5.17710035]
[1745563155488,25.0,152.88,152.81,1.9606]
[1745563155489,5.17710035,152.85,152.81,1.9606]
[1745563155683,5.17710035,152.83,152.78,7.09810035]
[1745563155990,6.5419,152.81,152.78,7.09810035]
[1745563156189,5.17710035,152.83,152.78,7.09810035]
[1745563156582,6.5418,152.82,152.78,13.64130035]
[1745563156993,11.71830035,152.83,152.79,6.5427]
[1745563157995,11.71830035,152.83,152.8,5.17710035]
[1745563158696,474.8813,152.95,152.82,5.17710035]
[1745563158902,5.17710035,152.95,152.89,5.17710035]
[1745563159399,5.17710035,152.93,152.89,5.17710035]
[1745563159593,30.17710035,152.93,152.87,5.17710035]
[1745563160401,6.5379,152.91,152.87,5.17710035]
[1745563160902,6.5374,152.92,152.87,11.71640035]
[1745563161199,30.17710035,152.93,152.87,11.71640035]
[1745563161401,6.5374,152.92,152.87,6.5393]
[1745563161595,6.5374,152.92,152.88,6.5389]
[1745563163899,6.5374,152.92,152.86,8.0864165]
[1745563164203,6.5374,152.92,152.87,6.5392]
[1745563164599,6.5377,152.91,152.87,6.5392]
[1745563165606,6.5381,152.9,152.86,14.6261165]
[1745563166808,6.5381,152.9,152.86,8.0864165]
[1745563167410,6.5386,152.89,152.86,8.0864165]
[1745563167610,25.0,152.93,152.84,8.0864165]
[1745563168613,6.5388,152.89,152.84,8.0864165]
[1745563169006,25.0,152.93,152.86,8.0864165]
[1745563169513,6.538,152.91,152.86,14.6259165]
[1745563169713,25.0,152.93,152.86,14.6259165]
[1745563170214,6.5379,152.91,152.86,14.6259165]
[1745563171214,6.5382,152.9,152.86,14.6259165]
[1745563171507,25.0,152.93,152.86,8.0864165]
[1745563171913,6.5391,152.88,152.86,8.0864165]
[1745563172911,6.5386,152.89,152.86,8.0864165]
[1745563173112,6.5386,152.89,152.86,14.6262165]
[1745563174316,6.5382,152.9,152.87,6.5393]
[1745563175516,6.5382,152.9,152.86,14.6261165]
[1745563176216,25.0,152.93,152.86,8.0864165]
[1745563176717,25.0,152.93,152.86,14.6261165]
[1745563176919,25.0,152.93,152.84,3.8903]
[1745563177217,25.0,152.93,152.84,11.9767165]
[1745563177416,6.5388,152.89,152.85,6.54]
[1745563178014,6.5388,152.89,152.86,6.5398]
[1745563183323,6.5388,152.89,152.88,5.17573218]
[1745563189430,6.5392,152.88,152.86,5.17573218]
[1745563190024,6.54,152.86,152.83,1.9862]
[1745563190227,5.17573218,152.87,152.81,5.17573218]
[1745563190830,5.17573218,152.87,152.79,59.56369749]
[1745563191024,5.17573218,152.85,152.8,5.17573218]
[1745563191230,30.11573218,152.85,152.8,5.17573218]
[1745563191529,6.5414,152.83,152.8,5.17573218]
[1745563191931,30.11573218,152.85,152.8,5.17573218]
[1745563192634,6.5414,152.83,152.8,5.17573218]
[1745563193235,6.5415,152.82,152.8,5.17573218]
[1745563195134,6.5415,152.82,152.78,6.543]
[1745563195329,6.5415,152.82,152.79,5.17573218]
[1745563195635,6.5424,152.8,152.79,5.17573218]
[1745563195836,5.17573218,152.83,152.79,5.17573218]
[1745563196131,5.17573218,152.83,152.76,24.94]
[1745563196435,6.542,152.81,152.78,5.17573218]
[1745563196636,5.17573218,152.83,152.78,5.17573218]
[1745563196826,6.5417,152.82,152.78,5.17573218]
[1745563197032,5.17573218,152.83,152.78,5.17573218]
[1745563198437,5.17573218,152.83,152.8,5.17573218]
[1745563198933,30.11573218,152.85,152.8,5.17573218]
[1745563199531,6.5411,152.83,152.8,5.17573218]
[1745563199733,30.11573218,152.85,152.8,5.17573218]
[1745563200135,6.541,152.84,152.8,5.17573218]
[1745563201238,6.5411,152.83,152.8,5.17573218]
[1745563204942,6.5416,152.82,152.8,5.17573218]
[1745563206135,6.5412,152.83,152.8,5.17573218]
[1745563206339,24.94,152.85,152.82,5.17573218]
[1745563206535,6.5402,152.85,152.84,5.17573218]
[1745563206931,24.62,152.88,152.84,5.17573218]
[1745563207141,24.62,152.88,152.86,5.17573218]
[1745563208440,6.5387,152.89,152.86,5.17573218]
[1745563208942,6.5392,152.88,152.86,5.17573218]
[1745563209638,5.17573218,152.9,152.84,5.17573218]
[1745563209839,5.17573218,152.88,152.83,5.17573218]
[1745563210040,24.62,152.87,152.83,5.17573218]
[1745563210242,5.17573218,152.86,152.81,5.17573218]
[1745563211541,24.62,152.87,152.78,31.1631]
[1745563211542,5.17573218,152.84,152.78,24.62]
[1745563211747,5.17573218,152.84,152.78,29.79573218]
[1745563211946,5.17573218,152.84,152.8,5.17573218]
[1745563212149,6.5417,152.82,152.8,5.17573218]
[1745563213150,6.5416,152.82,152.8,5.17573218]
[1745563214451,5.17573218,152.84,152.79,5.17573218]
[1745563214649,5.17573218,152.82,152.77,5.17573218]
[1745563215055,6.5427,152.8,152.77,5.17573218]
[1745563215758,6.5429,152.79,152.77,5.17573218]
[1745563216151,6.5429,152.79,152.75,6.5444]
[1745563216454,6.5429,152.79,152.77,5.17573218]
[1745563216647,6.5429,152.79,152.76,5.17573218]
[1745563218859,6.5433,152.78,152.76,5.17573218]
[1745563219260,5.17573218,152.82,152.76,5.17573218]
[1745563219949,6.5432,152.79,152.76,5.17573218]
[1745563220861,6.5424,152.8,152.76,11.71953218]
[1745563221054,5.17573218,152.82,152.78,5.17573218]
[1745563221953,5.17573218,152.8,152.76,5.17573218]
[1745563223262,6.5435,152.78,152.76,5.17573218]
[1745563224460,5.17573218,152.8,152.74,26.5397]
[1745563224660,6.5439,152.77,152.75,5.17573218]
[1745563225064,5.17573218,152.79,152.75,5.17573218]
[1745563225065,6.5433,152.78,152.75,5.17573218]
[1745563226267,6.5429,152.79,152.76,5.17573218]
[1745563226469,5.17573218,152.82,152.78,5.17573218]